bitfinex/quotes_ETHUSD_20260225
["timestamp","ask_amount","ask_price","bid_price","bid_amount"]
[1772036710936,3.46781468,2044.5,2041.7,5.62065575]
[1772036710937,2.69952767,2044.6,2042.5,6.07892779]
[1772036711135,2.41575035,2043.5,2042.0,6.07892779]
[1772036711336,2.41575035,2043.5,2041.0,9.69010655]
[1772036711337,6.34525468,2043.1,2040.9,30.0]
[1772036711566,6.34725468,2042.5,2041.0,13.996567]
[1772036711746,6.34725468,2042.5,2041.1,7.438643]
[1772036711949,6.34725468,2043.0,2041.2,13.996567]
[1772036712178,1.22375055,2042.9,2041.4,15.22121675]
[1772036712350,7.57098596,2043.0,2041.5,13.996567]
[1772036712553,6.34725468,2043.0,2041.8,3.36124535]
[1772036712776,7.57067797,2043.5,2041.9,13.996567]
[1772036712974,7.57067797,2043.5,2042.0,13.996567]
[1772036713176,7.57067797,2043.5,2041.3,10.301995]
[1772036713177,6.34725468,2043.0,2041.3,10.301995]
[1772036713377,6.34725468,2043.0,2040.8,1.48110797]
[1772036713378,6.34725468,2042.8,2041.0,13.996567]
[1772036713574,1.84,2042.7,2041.0,13.996567]
[1772036713777,8.18725468,2042.7,2041.2,13.996567]
[1772036713956,8.18725468,2042.7,2040.9,13.996567]
[1772036714156,7.57118496,2042.6,2041.0,1.22488975]
[1772036714359,6.34725468,2042.6,2041.2,13.996567]
[1772036714676,1.22387874,2042.7,2041.2,13.996567]
[1772036714860,1.22387874,2042.7,2041.4,13.996567]
[1772036715055,6.7347949,2043.0,2041.1,13.996567]
[1772036715259,6.34725468,2042.9,2041.3,10.812597]
[1772036715474,6.34725468,2042.9,2041.2,1.971]
[1772036715475,6.34725468,2042.9,2041.4,6.55125]
[1772036715683,6.34725468,2042.9,2041.2,13.996567]
[1772036716049,1.838,2042.8,2041.3,1.971]
[1772036716275,7.57112504,2042.7,2041.3,5.963954]
[1772036716451,7.57112504,2042.7,2041.3,2.350854]
[1772036716652,1.22384946,2042.8,2041.3,2.350854]
[1772036716851,1.22384946,2042.8,2041.4,13.996567]
[1772036717079,4.89456421,2043.1,2041.7,10.017508]
[1772036717080,7.57088543,2043.1,2041.7,10.017508]
[1772036717267,6.34725468,2043.5,2042.2,13.996567]
[1772036717575,6.34725468,2043.5,2042.4,13.996567]
[1772036717787,6.34725468,2043.5,2042.2,10.971214]
[1772036718078,3.20036582,2043.6,2042.1,2.637506]
[1772036718079,6.34725468,2043.3,2042.1,2.637506]
[1772036718266,6.34725468,2043.1,2041.8,1.973]
[1772036718467,6.34725468,2043.1,2041.9,2.425681]
[1772036718775,6.34725468,2043.1,2041.8,1.973]
[1772036718980,0.002,2042.7,2041.7,0.08192]
[1772036719181,0.002,2042.7,2041.8,1.973]
[1772036719387,6.34925468,2042.7,2041.1,18.89240597]
[1772036719559,6.34925468,2042.7,2041.2,4.984116]
[1772036719884,6.34725468,2042.5,2040.7,7.30393759]
[1772036720054,6.34725468,2042.4,2040.6,13.993567]
[1772036720254,6.34725468,2042.4,2040.8,13.993567]
[1772036720255,6.34725468,2042.2,2040.8,13.993567]
[1772036720666,6.34725468,2041.8,2040.2,1.22537006]
[1772036720882,6.34725468,2041.8,2040.3,5.894952]
[1772036721082,6.34725468,2041.6,2040.3,3.178198]
[1772036721452,8.18725468,2041.6,2040.3,2.003198]
[1772036721760,6.34725468,2041.5,2040.2,3.955969]
[1772036722181,7.57190443,2041.4,2040.3,1.22531]
[1772036722386,9.41090443,2041.4,2040.4,9.354508]
[1772036722691,6.34725468,2041.3,2040.3,4.838344]
[1772036723059,6.34725468,2041.3,2039.8,9.198378]
[1772036723276,6.34725468,2041.2,2039.1,1.972]
[1772036723485,1.84,2041.1,2039.3,13.992767]
[1772036723657,1.842,2041.0,2039.5,13.992767]
[1772036723858,6.34725468,2040.8,2038.8,10.712793]
[1772036724074,6.34725468,2040.8,2039.0,10.693264]
[1772036724392,6.34725468,2040.4,2038.7,1.22625303]
[1772036724687,6.34725468,2040.4,2038.8,0.43573229]
[1772036724914,6.34725468,2039.6,2038.6,0.001]
[1772036725062,6.34725468,2039.6,2038.8,13.992767]
[1772036725365,6.34725468,2039.6,2038.7,4.000548]
[1772036725567,6.34725468,2039.6,2038.6,0.001]
[1772036726159,7.21686159,2039.5,2038.6,0.001]
[1772036726367,9.06086159,2039.5,2038.6,0.0002]
[1772036726582,5.99107096,2039.4,2038.6,0.0002]
[1772036727768,5.99107096,2039.9,2038.8,13.992767]
[1772036727968,5.99107096,2040.3,2038.8,10.798951]
[1772036728180,7.21644102,2040.2,2038.8,1.22621149]
[1772036728484,1.22537006,2040.2,2039.0,13.992767]
[1772036729185,1.22524995,2040.4,2039.2,13.992767]
[1772036729395,1.22524995,2040.4,2039.2,13.991967]
[1772036729582,4.9007297,2040.6,2039.4,13.991967]
[1772036729761,4.9007297,2040.6,2039.6,4.9259]
[1772036729959,6.47887139,2040.5,2038.8,1.22621149]
[1772036730280,6.47887139,2040.5,2039.2,2.3502]
[1772036730281,6.47887139,2040.3,2039.2,2.3502]
[1772036730477,6.47887139,2040.3,2039.2,4.66573]
[1772036730686,6.47887139,2040.3,2039.1,1.22603109]
[1772036730862,6.47887139,2040.3,2039.2,2.843016]
[1772036731065,6.47887139,2040.3,2039.1,3.921017]
[1772036731270,6.47887139,2040.1,2038.6,0.0002]
[1772036731568,6.47887139,2039.6,2038.6,1.22652229]
[1772036731769,6.47887139,2039.6,2038.6,0.0002]
[1772036732179,1.22579063,2039.5,2038.6,0.0002]
[1772036732381,7.70466202,2039.5,2038.4,0.0004]
[1772036733393,7.70466202,2039.5,2038.5,7.609376]
[1772036733594,7.70466202,2039.5,2038.5,7.148776]
[1772036733793,7.70466202,2039.5,2038.4,0.0004]
[1772036734162,6.47887139,2038.9,2037.7,1.22686101]
[1772036734370,6.47887139,2038.7,2037.3,1.972]
[1772036734569,6.47887139,2038.7,2037.5,10.558853]
[1772036734892,6.47887139,2038.7,2037.7,7.271321]
[1772036735097,6.47887139,2038.7,2036.9,11.396417]
[1772036735270,1.22621149,2038.8,2037.1,3.221142]
[1772036735271,6.47887139,2038.0,2037.1,3.221142]
[1772036735470,6.47807139,2038.0,2037.2,0.44216984]
[1772036735710,6.47887139,2037.8,2036.3,0.001]
[1772036735867,6.47887139,2037.6,2036.3,1.22871506]
[1772036736070,6.47887139,2037.6,2036.3,0.001]
[1772036736306,7.70616643,2037.0,2036.3,0.001]
[1772036736471,7.70590759,2037.5,2036.4,11.395617]
[1772036736675,1.2270362,2037.5,2036.4,11.395617]
[1772036736982,4.90729933,2037.8,2036.4,11.395617]
[1772036737167,11.38617072,2037.8,2036.4,7.794052]
[1772036737371,6.47887139,2037.7,2036.5,1.975]
[1772036737594,1.22681322,2037.8,2036.7,0.08192]
[1772036737852,1.22663264,2038.1,2036.9,3.44127092]
[1772036737992,1.22663264,2038.1,2037.0,11.395617]
[1772036738195,1.22663264,2038.1,2037.0,0.08192]
[1772036738372,1.22663264,2038.1,2036.9,1.22731589]
[1772036738572,1.22663264,2038.1,2037.1,11.395617]
[1772036738573,7.70550403,2038.1,2037.1,11.395617]
[1772036739080,7.70470403,2038.1,2036.9,1.22731589]
[1772036739287,4.90626321,2038.3,2037.1,11.395617]
[1772036739487,1.22657246,2038.2,2037.2,1.974]
[1772036739796,1.22639195,2038.5,2037.4,4.072]
[1772036739982,7.70526334,2038.5,2037.4,1.974]
[1772036740385,7.70526334,2038.5,2037.5,1.22699386]
[1772036740590,4.90556781,2038.6,2037.6,11.395617]
[1772036740793,11.38394403,2038.8,2037.6,1.972]
[1772036741099,6.47887139,2038.7,2037.3,2.698884]
[1772036741303,6.47887139,2038.7,2037.2,1.971]
[1772036741620,6.47887139,2038.5,2037.2,1.971]
[1772036741807,6.47887139,2038.5,2037.3,11.395617]
[1772036742005,4.90507264,2038.8,2037.2,6.0374517]
[1772036742204,4.90388387,2039.3,2038.1,11.395617]
[1772036742405,4.90268176,2039.8,2038.4,9.39680262]
[1772036742605,4.77269383,2039.8,2038.5,5.411177]
[1772036742795,4.77269383,2039.8,2038.6,11.395617]
[1772036743317,4.90244141,2040.0,2038.7,11.395617]
[1772036743318,1.22549019,2040.0,2038.7,11.395617]
[1772036743523,1.22549019,2040.0,2038.9,11.395617]
[1772036743829,1.22549019,2040.0,2038.7,10.196446]
[1772036743999,1.22549019,2040.0,2038.6,6.0374517]
[1772036744329,1.22549019,2040.0,2038.4,1.975]
[1772036744330,6.47887139,2039.7,2038.4,1.975]
[1772036744489,1.22561035,2039.8,2038.5,11.395617]
[1772036744694,1.22561035,2039.8,2038.6,11.395617]
[1772036745103,1.22561035,2039.8,2038.4,9.398633]
[1772036745423,1.22561035,2039.8,2038.4,3.594936]
[1772036745629,7.70448174,2039.8,2038.2,1.22653054]
[1772036745926,7.70448174,2039.8,2038.3,8.0154517]
[1772036746098,7.70448174,2039.8,2038.5,9.099597]
[1772036746295,7.70448174,2039.8,2038.6,1.979]
[1772036746493,7.70448174,2039.8,2038.7,5.932]
[1772036746699,1.22561035,2039.8,2038.9,11.395617]
[1772036746895,1.22561035,2039.8,2038.7,11.395617]
[1772036747226,1.22561035,2039.8,2038.9,6.221786]
[1772036747421,1.22561035,2039.8,2038.5,1.30830556]
[1772036747422,1.22561035,2039.8,2038.7,11.395617]
[1772036747623,1.22561035,2039.8,2038.7,10.295361]
[1772036748127,1.22561035,2039.8,2038.8,0.4426141]
[1772036748303,4.90244141,2039.9,2038.9,1.98]
[1772036748517,4.90196514,2040.0,2039.0,7.994645]
[1772036748696,4.90196514,2040.0,2039.1,0.44348803]
[1772036748896,1.22549019,2040.0,2039.2,11.395617]
[1772036749097,101.22544161,2040.1,2039.4,11.395617]
[1772036749292,101.22544161,2040.1,2039.6,11.395617]
[1772036749518,101.22544161,2040.1,2039.3,7.442764]
[1772036749703,101.22544161,2040.1,2039.4,0.44432356]
[1772036749913,101.22544161,2040.1,2039.5,0.44432356]
[1772036750607,101.22544161,2040.1,2039.2,5.847066]
[1772036750805,101.22544161,2040.1,2039.3,0.44493485]
[1772036751011,101.22544161,2040.1,2039.2,1.977]
[1772036751310,6.47887139,2040.0,2038.6,4.17543384]
[1772036751507,6.47807139,2039.8,2038.3,4.853956]
[1772036751714,6.47807139,2039.8,2038.7,2.493678]
[1772036752126,6.47807139,2039.8,2038.6,1.976]
[1772036752328,6.47887139,2039.6,2037.9,1.975]
[1772036752636,7.70496261,2039.0,2037.3,5.40252258]
[1772036752877,6.541661,2038.7,2037.6,4.178678]
[1772036753125,14.92553239,2038.9,2037.4,4.853956]
[1772036753332,14.92553239,2038.9,2037.7,4.853956]
[1772036753535,14.92553239,2038.9,2037.4,4.853956]
[1772036753536,13.02053239,2038.7,2037.4,4.853956]
[1772036753709,13.02053239,2038.6,2037.3,4.853956]
[1772036753903,6.47887139,2038.4,2037.3,4.853956]
[1772036754104,6.47887139,2038.4,2037.4,4.196386]
[1772036754307,1.906,2038.5,2037.4,4.196386]
[1772036754511,0.002,2038.5,2037.6,4.853956]
[1772036754812,0.002,2038.5,2037.4,1.972]
[1772036755027,0.002,2038.5,2037.5,4.159738]
[1772036756531,0.002,2038.5,2037.7,4.853956]
[1772036756733,0.002,2038.5,2037.7,1.97]
[1772036756935,0.002,2038.5,2037.8,4.853956]
[1772036757541,0.002,2038.5,2037.6,2.6885]
[1772036757734,0.002,2038.5,2037.5,1.969]
[1772036758049,0.002,2038.5,2037.6,2.956]
[1772036759056,0.002,2038.5,2037.5,3.19599323]
[1772036759266,0.002,2038.5,2037.7,6.17211596]
[1772036759544,1.22624692,2038.8,2037.9,4.853956]
[1772036760246,4.90364908,2039.3,2038.1,11.02607196]
[1772036760555,11.18895063,2039.3,2038.2,1.967]
[1772036760756,6.28530155,2039.1,2037.6,4.17543384]
[1772036761049,6.28530155,2038.9,2037.7,2.640516]
[1772036761423,6.28530155,2038.9,2037.5,4.853956]
[1772036761626,1.22609122,2039.0,2037.6,6.17211596]
[1772036761830,7.51139277,2039.0,2037.7,6.818956]
[1772036762058,7.51139277,2039.0,2037.8,4.853956]
[1772036762355,7.51139277,2039.0,2037.5,4.853956]
[1772036762853,6.28530155,2038.9,2037.6,3.8045]
[1772036763147,1.22621149,2038.8,2037.6,3.8045]
[1772036763349,1.22621149,2038.8,2037.7,4.853956]
[1772036763516,1.22621149,2038.8,2037.8,1.964]
[1772036764061,101.22613378,2039.0,2038.0,4.853956]
[1772036764264,101.22613378,2039.0,2038.1,3.896857]
[1772036764434,101.22613378,2039.0,2038.0,1.965]
[1772036764626,107.51143533,2039.0,2037.7,6.818956]
[1772036764827,6.28530155,2038.9,2037.6,6.17211596]
[1772036765026,6.28530155,2038.9,2037.8,4.853956]
[1772036765230,7.51151304,2038.8,2037.5,4.853956]
[1772036765537,8.19730155,2038.7,2037.6,2.477979]
[1772036765759,8.19730155,2038.7,2037.5,1.965]
[1772036766070,8.19730155,2038.7,2037.6,2.143079]
[1772036766224,8.19730155,2038.7,2037.6,2.123079]
[1772036766429,6.28530155,2038.6,2037.5,4.833956]
[1772036767330,1.22639195,2038.5,2037.5,4.833956]
[1772036768332,7.5116935,2038.5,2037.2,0.001]
[1772036768530,6.30530155,2038.2,2037.2,0.001]
[1772036768731,8.20130155,2038.2,2037.2,0.001]
[1772036768948,6.28530155,2038.1,2037.2,0.001]
[1772036769163,6.30530155,2038.0,2036.6,2.04292]
[1772036769361,1.22675303,2037.9,2036.7,4.833956]
[1772036769658,1.22675303,2037.9,2037.7,0.001]
[1772036769830,1.22675303,2037.9,2036.7,6.792956]
[1772036770035,1.22675303,2037.9,2037.5,0.001]
[1772036770240,1.22675303,2037.9,2036.8,4.833956]
[1772036770434,1.22675303,2037.9,2036.7,1.958]
[1772036770435,1.22675303,2037.9,2036.7,4.833956]
[1772036770636,1.22675303,2037.9,2037.2,0.001]
[1772036770830,1.22675303,2037.9,2036.4,4.833956]
[1772036770831,6.28530155,2037.7,2036.4,4.833956]
[1772036771135,6.30530155,2037.7,2036.5,4.833956]
[1772036771326,7.51223519,2037.6,2036.5,4.833956]
[1772036771529,7.51223519,2037.6,2036.5,4.588535]
[1772036771760,7.51223519,2037.6,2036.3,0.001]
[1772036771761,7.51223519,2037.6,2036.4,4.833956]
[1772036771932,7.53223519,2037.6,2036.4,4.833956]
[1772036772136,6.30530155,2037.2,2036.0,0.001]
[1772036772367,8.19930155,2037.1,2036.0,0.001]
[1772036772752,4.853956,2037.0,2036.0,0.001]
[1772036773275,1.22735529,2036.9,2036.0,0.001]
[1772036773766,7.51265684,2036.9,2036.0,0.001]
[1772036773951,7.51265684,2036.9,2035.8,0.001]
[1772036773952,6.28530155,2036.6,2035.8,0.001]
[1772036774264,11.13925755,2035.9,2035.2,0.001]
[1772036774467,6.768956,2035.9,2035.2,0.001]
[1772036774660,1.915,2036.3,2035.2,1.22934307]
[1772036774965,8.20030155,2036.3,2035.2,0.001]
[1772036775343,1.22777723,2036.2,2035.2,0.001]
[1772036775857,7.51307878,2036.2,2035.2,0.001]
[1772036776358,1.22777723,2036.2,2035.2,0.001]
[1772036776566,1.22777723,2036.2,2035.4,6.017613]
[1772036776936,1.22753608,2036.6,2035.4,6.017613]
[1772036777452,1.22753608,2036.6,2035.4,3.357267]
[1772036777650,7.51283763,2036.6,2035.4,1.955]
[1772036777966,7.51283763,2036.6,2035.2,9.3564846]
[1772036778266,7.51283763,2036.6,2035.2,0.001]
[1772036778477,7.51283763,2036.6,2035.3,1.22930634]
[1772036778680,1.22753608,2036.6,2035.4,13.253517]
[1772036778970,7.51283763,2036.6,2035.3,0.001]
[1772036779165,6.28530155,2036.3,2035.2,0.001]
[1772036779363,6.28530155,2036.1,2035.0,0.001]
[1772036779664,1.22789783,2036.0,2035.0,0.001]
[1772036780136,7.51319938,2036.0,2035.0,0.001]
[1772036780958,7.51319938,2036.0,2034.1,10.174874]
[1772036780959,6.28530155,2035.4,2034.1,10.174874]
[1772036781159,2.41333556,2035.8,2034.0,1.22906646]
[1772036781160,1.917,2035.5,2034.3,23.1262]
[1772036781364,1.917,2035.5,2034.5,27.230983]
[1772036781544,1.2282598,2035.4,2034.6,9.418528]
[1772036782564,1.22807879,2035.7,2034.7,28.60309196]
[1772036782898,1.22777723,2036.2,2035.1,14.564563]
[1772036783072,6.28530155,2036.1,2035.1,14.564563]
[1772036783241,6.28530155,2036.1,2034.6,8.13011596]
[1772036783436,6.28530155,2036.1,2034.8,1.22862197]
[1772036783437,1.22789783,2036.0,2034.8,1.22862197]
[1772036783743,1.22789783,2036.0,2034.9,20.724278]
[1772036784143,1.22789783,2036.0,2035.3,0.001]
[1772036785675,4.91159135,2036.2,2035.4,30.0]
[1772036785835,4.91159135,2036.2,2035.4,29.148781]
[1772036786039,11.33129236,2036.2,2035.3,0.001]
[1772036787165,4.91159135,2036.2,2035.3,0.001]
[1772036787467,4.91159135,2036.2,2035.4,26.217402]
[1772036787640,4.91040612,2036.5,2035.4,1.22820636]
[1772036787836,4.91040612,2036.5,2035.3,0.001]
[1772036788061,4.91040612,2036.5,2035.4,10.826794]
[1772036788851,4.91040612,2036.5,2035.4,17.12929952]
[1772036789050,4.91040612,2036.5,2035.4,6.30250552]
[1772036789640,1.919,2036.4,2035.3,0.001]
[1772036789838,8.33870101,2036.4,2035.3,0.001]
[1772036791170,1.919,2036.4,2035.3,7.4238475]
[1772036791375,1.919,2036.4,2035.4,23.475524]
[1772036791879,1.22771693,2036.3,2035.3,7.42385075]
[1772036792176,1.22771693,2036.3,2035.4,25.853378]
[1772036792472,1.22771693,2036.3,2035.4,5.331318]
[1772036792860,1.22771693,2036.3,2035.3,0.001]
[1772036793068,1.22771693,2036.3,2035.4,24.266409]
[1772036793250,1.22771693,2036.3,2035.5,1.952]
[1772036793454,1.22771693,2036.3,2035.4,6.19453835]
[1772036793773,1.22771693,2036.3,2035.5,1.952]
[1772036794190,1.22771693,2036.3,2035.5,3.1801619]
[1772036794382,1.22771693,2036.3,2035.5,1.952]
[1772036794743,1.22771693,2036.3,2035.4,6.19453835]
[1772036795246,1.22771693,2036.3,2035.5,1.95]
[1772036795675,1.22771693,2036.3,2035.3,0.001]
[1772036795676,6.27564183,2036.2,2035.3,0.001]
[1772036795852,6.27564183,2035.9,2035.3,0.001]
[1772036796054,8.18864183,2035.9,2035.3,0.001]
[1772036796268,1.22801846,2035.8,2034.8,0.001]
[1772036796642,6.27564183,2035.7,2034.1,3.42960156]
[1772036796848,6.27564183,2035.2,2033.8,7.42470399]
[1772036797049,1.913,2035.1,2033.9,13.399426]
[1772036797259,1.913,2035.1,2033.9,8.096463]
[1772036797547,6.27564183,2035.0,2033.8,0.001]
[1772036797748,6.27564183,2034.9,2033.8,0.001]
[1772036798006,6.27564183,2034.6,2033.8,0.001]
[1772036798201,8.18964183,2034.5,2033.5,0.001]
[1772036798507,7.50450537,2034.4,2033.5,0.001]
[1772036798703,7.50450537,2034.4,2033.6,24.818993]
[1772036798704,1.22886354,2034.4,2033.6,24.818993]
[1772036798930,1.22886354,2034.4,2033.6,17.835073]
[1772036799282,1.22886354,2034.4,2033.6,17.044191]
[1772036799614,1.22886354,2034.4,2033.5,0.001]
[1772036799615,6.27564183,2034.3,2033.5,0.001]
[1772036800305,6.27564183,2034.3,2033.3,0.001]
[1772036800306,1.22898436,2034.2,2033.3,0.001]
[1772036800475,7.50462619,2034.2,2033.3,0.001]
[1772036802005,1.22898436,2034.2,2033.3,0.001]
[1772036802403,4.91593746,2034.4,2033.5,30.0]
[1772036802695,4.91593746,2034.4,2033.5,5.69615]
[1772036803101,4.91593746,2034.4,2033.5,15.725514]
[1772036803284,4.91593746,2034.4,2033.5,13.77488]
[1772036803477,4.91593746,2034.4,2033.6,13.72758]
[1772036803681,4.91593746,2034.4,2033.5,6.51245]
[1772036803907,4.91593746,2034.4,2033.6,7.288084]
[1772036804411,4.91532228,2034.7,2033.6,7.288084]
[1772036805015,1.2285616,2034.9,2033.8,9.4698]
[1772036805182,1.2285616,2034.9,2033.8,31.76678135]
[1772036805389,1.2282598,2035.4,2034.1,10.62165]
[1772036805592,1.2282598,2035.4,2033.9,2.02992]
[1772036805593,1.2282598,2035.4,2034.4,23.63206]
[1772036805932,1.2282598,2035.4,2034.6,13.55688]
[1772036806221,1.22795815,2035.9,2034.6,13.55688]
[1772036806408,4.9138326,2036.1,2034.7,1.948]
[1772036806609,2.41333556,2036.0,2034.5,6.698543]
[1772036806787,8.18564183,2035.9,2034.7,4.06315]
[1772036807494,1.91,2035.9,2034.7,4.06315]
[1772036807691,4.9138326,2036.1,2034.7,4.06315]
[1772036808621,0.002,2036.1,2034.9,27.311375]
[1772036809621,0.002,2036.1,2035.0,30.0]
[1772036809815,0.002,2036.1,2035.2,36.19453835]
[1772036810022,0.002,2036.1,2035.4,16.01068]
[1772036810220,0.002,2036.1,2035.4,7.85758]
[1772036810414,0.002,2036.1,2035.4,3.1772598]
[1772036810810,0.002,2036.1,2035.3,1.2282783]
[1772036811124,0.002,2036.1,2035.5,1.948]
[1772036811418,0.002,2036.1,2035.1,1.948]
[1772036811619,0.002,2036.1,2035.2,24.512821]
[1772036811830,0.002,2036.1,2035.2,4.835]
[1772036812129,0.002,2036.1,2035.1,7.683]
[1772036812315,0.002,2036.1,2035.1,1.948]
[1772036812626,1.22983753,2036.1,2035.1,1.948]
[1772036812835,1.22983753,2036.1,2035.1,7.4941]
[1772036813019,1.22983753,2036.1,2035.1,1.947]
[1772036813405,1.22983753,2036.1,2035.0,0.001]
[1772036813603,1.22983753,2036.1,2035.1,1.945]
[1772036814502,8.69142093,2035.9,2035.0,0.001]
[1772036815512,2.4157791,2035.7,2035.0,0.001]
[1772036816130,2.4157791,2035.7,2034.8,1.943]
[1772036816333,2.4157791,2035.7,2034.8,0.001]
[1772036816631,1.22813912,2035.6,2034.9,2.4157791]
[1772036816937,1.22813912,2035.6,2035.0,20.804467]
[1772036817231,4.91161982,2036.0,2035.2,22.294797]
[1772036817434,4.91161982,2036.0,2035.2,1.94]
[1772036817932,1.22789783,2036.0,2035.4,30.0]
[1772036818105,1.22789783,2036.0,2035.4,21.43266]
[1772036818504,0.002,2036.1,2035.4,22.66087051]
[1772036818728,0.002,2036.1,2035.4,1.22821051]
[1772036818933,0.002,2036.1,2035.4,19.407254]
[1772036819106,0.002,2036.1,2035.4,18.71874]
[1772036819835,0.002,2036.1,2035.5,1.943]
[1772036820133,0.002,2036.1,2035.3,7.5577359]
[1772036820334,0.002,2036.1,2035.5,1.944]
[1772036820544,0.002,2036.1,2035.4,13.316432]
[1772036820744,0.002,2036.1,2035.5,1.944]
[1772036821251,0.002,2036.1,2035.6,14.594402]
[1772036821658,1.22953628,2036.6,2035.9,2.41406949]
[1772036821821,1.22953628,2036.6,2035.8,6.32946257]
[1772036822016,1.22953628,2036.6,2035.9,1.945]
[1772036822243,6.01217951,2037.9,2036.6,6.32946257]
[1772036822552,1.47386461,2038.3,2037.2,2.40999385]
[1772036822553,4.90674732,2038.2,2037.2,2.40999385]
[1772036822851,4.90674732,2038.2,2036.4,2.60327344]
[1772036822852,4.90674732,2038.2,2037.1,6.32946257]
[1772036823146,1.22657246,2038.2,2037.4,2.1247]
[1772036823323,1.22657246,2038.2,2037.5,1.951]
[1772036823524,1.22657246,2038.2,2037.6,6.164897]
[1772036823924,1.22657246,2038.2,2036.5,6.32946257]
[1772036823925,7.23875197,2038.2,2036.5,6.32946257]
[1772036824118,1.22657246,2038.2,2036.8,6.32946257]
[1772036824418,1.22657246,2038.2,2037.0,19.917202]
[1772036824627,1.22657246,2038.2,2037.2,31.22712051]
[1772036824851,1.22657246,2038.2,2037.3,18.245217]
[1772036825144,1.22657246,2038.2,2037.4,1.95]
[1772036825351,1.22657246,2038.2,2037.5,2.706]
[1772036826047,1.22657246,2038.2,2037.3,30.0]
[1772036826247,1.22657246,2038.2,2037.5,7.411058]
[1772036826455,1.22657246,2038.2,2037.3,9.28265]
[1772036826756,1.22657246,2038.2,2037.3,3.948967]
[1772036826924,1.22657246,2038.2,2037.2,1.949]
[1772036827122,1.22657246,2038.2,2037.3,3.741703]
[1772036827318,1.22657246,2038.2,2037.2,1.949]
[1772036827528,1.22657246,2038.2,2037.3,6.447703]
[1772036827940,1.22657246,2038.2,2037.3,4.621703]
[1772036828160,1.22657246,2038.2,2037.3,3.72484602]
[1772036828358,1.22657246,2038.2,2036.8,26.835506]
[1772036828563,7.23875197,2038.2,2037.0,2.943241]
[1772036828851,7.23875197,2038.2,2037.0,3.5215]
[1772036828852,0.016856,2038.1,2037.0,3.5215]
[1772036829055,0.016856,2038.1,2036.5,29.532273]
[1772036829056,6.02903551,2037.9,2036.5,29.532273]
[1772036829275,1.893,2037.8,2036.7,30.0]
[1772036829484,1.893,2037.8,2036.8,30.0]
[1772036829851,1.893,2037.8,2036.8,16.651662]
[1772036830454,1.893,2037.8,2036.9,30.0]
[1772036830766,1.22675303,2037.9,2037.0,1.946]
[1772036830968,1.22675303,2037.9,2037.0,3.17328701]
[1772036831169,1.22675303,2037.9,2037.2,13.457475]
[1772036831471,101.2267388,2038.0,2037.2,30.0]
[1772036831676,101.2267388,2038.0,2037.2,36.32946257]
[1772036831881,100.0,2038.0,2037.3,30.0]
[1772036832196,100.0,2038.0,2037.1,17.852132]
[1772036832197,101.22670484,2038.0,2037.1,17.852132]
[1772036832991,101.22670484,2038.0,2037.2,20.323579]
[1772036833299,1.22826316,2038.8,2037.6,36.07895076]
[1772036833596,1.22824845,2038.8,2037.8,30.0]
[1772036833755,1.22629619,2038.7,2037.8,30.0]
[1772036833956,4.90511108,2038.7,2037.8,18.68241]
[1772036834183,1.22839519,2038.5,2037.8,18.68241]
[1772036834499,0.002,2038.8,2038.4,30.0]
[1772036834780,1.22593558,2039.3,2038.6,3.669666]
[1772036834982,1.22579063,2039.5,2038.7,7.655895]
[1772036835362,1.22579063,2039.5,2038.7,14.630944]
[1772036835571,1.22579063,2039.5,2038.7,12.980039]
[1772036835773,1.22579063,2039.5,2038.7,5.55997]
[1772036835774,7.23797014,2039.5,2038.7,5.55997]
[1772036836075,1.22579063,2039.5,2038.7,5.55997]
[1772036836479,1.22579063,2039.5,2038.6,1.952]
[1772036836670,1.22579063,2039.5,2038.7,3.5224]
[1772036837691,1.22579063,2039.5,2038.8,30.0]
[1772036837878,1.22579063,2039.5,2038.7,23.44765]
[1772036838086,1.22579063,2039.5,2038.7,21.422542]
[1772036838403,6.01217951,2039.3,2037.9,11.650356]
[1772036838631,6.01217951,2038.5,2037.1,0.001]
[1772036838898,7.23881215,2038.1,2037.1,0.001]
[1772036839607,7.469277,2037.5,2037.1,0.001]
[1772036839811,1.909,2037.4,2037.1,0.001]
[1772036840184,1.909,2037.4,2036.6,0.001]
[1772036840898,1.22711431,2037.3,2036.6,1.22852807]
[1772036841099,1.22711431,2037.3,2036.7,14.858397]
[1772036841303,1.22711431,2037.3,2036.7,7.38912]
[1772036841518,1.22687343,2037.7,2036.7,7.38912]
[1772036842109,1.22687343,2037.7,2036.6,1.22853412]
[1772036842110,7.91817951,2038.4,2036.9,15.997356]
[1772036842289,6.81080847,2038.7,2036.9,15.997356]
[1772036842486,4.90580339,2038.5,2037.0,13.762564]
[1772036842690,4.9049026,2039.0,2037.1,6.5]
[1772036842917,4.90508657,2039.2,2037.7,16.392722]
[1772036843084,4.90412436,2039.3,2037.8,1.951]
[1772036843290,1.907,2039.2,2037.8,1.951]
[1772036843491,3.37071054,2039.0,2037.7,21.727686]
[1772036843693,3.37071054,2039.0,2037.7,1.95]
[1772036844613,1.907,2039.2,2037.7,1.95]
[1772036844787,1.907,2039.2,2037.8,32.456165]
[1772036844992,1.22603109,2039.1,2037.9,13.935741]
[1772036845713,1.22603109,2039.1,2038.1,15.39642]
[1772036846019,1.22603109,2039.1,2038.2,1.949]
[1772036847627,0.08192,2040.0,2038.5,6.5]
[1772036847806,1.902,2040.3,2038.5,6.5]
[1772036847807,3.37071054,2040.1,2038.5,6.5]
[1772036848119,4.90220108,2040.2,2038.3,1.953]
[1772036848120,3.37071054,2039.7,2038.3,1.953]
[1772036848325,5.27871054,2039.7,2038.3,1.953]
[1772036848705,1.908,2039.7,2038.3,1.953]
[1772036849117,1.22573053,2039.6,2038.3,1.953]
[1772036849520,0.002,2038.9,2037.9,26.60248]
[1772036849710,0.002,2038.9,2037.9,33.10248]
[1772036849898,0.002,2038.9,2037.9,6.5]
[1772036850101,0.002,2038.9,2037.8,1.951]